[Event "CZE-ch U14 Open 2023"]
[Site "Teplice"]
[Date "2023.03.13"]
[Round "3.4"]
[White "Zrubek, Dan"]
[Black "Zelba, Lukas"]
[Result "1/2-1/2"]
[ECO "C10"]
[WhiteElo "1752"]
[BlackElo "1912"]
[Annotator "TA"]
[PlyCount "51"]
[EventDate "2023.03.09"]
[EventType "swiss"]
[EventCountry "CZE"]
[SourceTitle "playchess.com"]
[Source "ChessBase"]
[SourceQuality "1"]
[TimeControl "40/5400+30:1800+30"]

{[%evp 9,51,29,25,26,31,13,6,6,11,15,10,-9,0,-49,-6,-115,-124,-120,-35,-65,-38,-94,-78,-104,-97,-114,-107,-120,-57,-62,-73,-69,-37,-39,-10,-139,-138,-117,-66,-61,0,-118,0,-142]} 1. e4 {[%emt 0:00:02]} e6 {[%emt 0:00:03]} 2. d4 {[%emt 0:00:05]} d5 {[%emt 0:00:03]} 3. Nc3 {[%emt 0:00:03]} Nc6 {[%emt 0:00:03]} 4. e5 {[%emt 0:06:24]} Nge7 {[%emt 0:00:30]} 5. f4 {[%emt 0:02:14]} Nf5 {[%emt 0:03:43]} 6. Nf3 {[%emt 0:01:33] C10: French with 3 Nc3: Unusual Black 3rd moves and 3...dxe4.} Be7 {[%emt 0:03:48]} 7. g3 {[%emt 0:04:08] [#]} O-O $146 {[%emt 0:28:19]} ({Predecessor:} 7... b6 8. Bg2 Bb7 9. O-O Na5 10. g4 Nh6 11. f5 Ng8 12. Ne2 Qd7 13. Ng5 Bxg5 14. Bxg5 {0-1 Drozniak,S (1579)-Michalski,F (1740) POL-chT U19 2nd League 2014 (3.110)}) 8. Bh3 {[%emt 0:08:38]} b6 {[%emt 0:03:14]} 9. Bxf5 {[%emt 0:12:11]} exf5 {[%emt 0:00:07]} 10. Be3 {[%emt 0:00:37]} Na5 {[%emt 0:09:43][%cal Bc6a5,Ba5c4,Bc4e3][%mdl 32]} 11. Nd2 {[%emt 0:07:36]} (11. Qd3 $1 $11 {feels stronger.}) 11... f6 {[%emt 0:10:28]} 12. Rb1 {[%emt 0:15:15] [#]} (12. Qf3 $11) 12... fxe5 $1 $17 {[%emt 0:03:09]} 13. fxe5 {[%emt 0:00:54]} Ba6 {[%emt 0:07:48]} (13... f4 $17 14. Bxf4 (14. gxf4 Bh4+ 15. Ke2 c5 $19) 14... c5) 14. Qf3 $15 {[%emt 0:01:10]} c6 {[%emt 0:03:27]} (14... Kh8 $5 {[%cal Rc7c5]}) 15. b4 {[%emt 0:07:25]} ({Better is} 15. Ne2 $15) 15... Nc4 $17 {[%emt 0:00:29]} 16. b5 {[%emt 0:01:39] [#] Hoping for Nxc4.} Nxe3 {[%emt 0:02:29]} 17. Qxe3 {[%emt 0:00:15]} cxb5 {[%emt 0:02:29]} 18. Nxb5 {[%emt 0:01:23]} Bg5 {[%emt 0:00:58]} ({Black should play} 18... f4 $17 19. gxf4 Qd7) 19. Qb3 $15 {[%emt 0:04:00]} Bxb5 {[%emt 0:05:55]} (19... Bxd2+ {is interesting.} 20. Kxd2 Qg5+ 21. Kd1 Qg4+) 20. Qxb5 {[%emt 0:00:10]} Rc8 {[%emt 0:00:08] White must now prevent ...Rc3.} (20... Be3 $5 {[%cal Re3d4]} 21. c3 f4 $11) 21. Qd3 {[%emt 0:08:01] Prevents Rc3.} Bxd2+ {[%emt 0:03:45]} 22. Kxd2 {[%emt 0:06:54]} (22. Qxd2 $11 Qc7 23. Kd1) 22... Qg5+ $17 {[%emt 0:00:11]} 23. Ke2 {[%emt 0:00:49]} Qg4+ {[%emt 0:02:00]} (23... Qh5+ $17 24. Kd2 Qh6+ 25. Ke2 Qh3) 24. Kd2 $1 $15 {[%emt 0:01:22]} ({But not} 24. Kf2 $2 f4 25. Rhf1 fxg3+ 26. Kg1 Rxf1+ 27. Rxf1 gxh2+ 28. Kxh2 Rc6 $19) 24... Qg5+ {[%emt 0:00:21]} (24... f4 $15 25. Rbf1 Qg5 26. gxf4 Rxf4 27. Rxf4 Qxf4+ 28. Kd1 Rc4) 25. Ke2 $1 $17 {[%emt 0:00:31]} Qg4+ {[%emt 0:00:29]} ({Weaker is} 25... f4 26. Rbf1) ({Black should try} 25... Qh5+ $17 26. Kd2 Qh6+ 27. Ke2 Qh5+ 28. Kd2 Qh6+ 29. Ke2 Qh3) 26. Ke1 {Weighted Error Value: White=0.28 (precise) /Black=0.31} ({Don't blunder} 26. Kf2 $2 f4 27. Rhf1 fxg3+ 28. Kg1 gxh2+ 29. Kh1 Rxf1+ 30. Rxf1 Rc6 $19) (26. Kd2 $1 $11) 1/2-1/2

[Event "CZE-ch U14 Open 2023"]
[Site "Teplice"]
[Date "2023.03.13"]
[Round "3.5"]
[White "Zemek, Antonin"]
[Black "Krautschneider, Daniel Jan"]
[Result "1-0"]
[ECO "A04"]
[WhiteElo "1739"]
[BlackElo "1679"]
[Annotator "NA RC COMBH"]
[PlyCount "73"]
[EventDate "2023.03.09"]
[EventType "swiss"]
[EventCountry "CZE"]
[SourceTitle "playchess.com"]
[Source "ChessBase"]
[SourceQuality "1"]
[TimeControl "40/5400+30:1800+30"]

1. Nf3 {[%emt 0:00:19]} c5 {[%emt 0:00:05]} 2. b3 {[%emt 0:00:56]} Nc6 {[%emt 0:00:18]} 3. Bb2 {[%emt 0:01:46]} d6 {[%emt 0:00:16]} 4. g3 {[%emt 0:01:29]} e5 {[%emt 0:00:12]} 5. d3 {[%emt 0:01:02]} Nge7 {[%emt 0:00:15]} 6. Bg2 {[%emt 0:01:38]} g6 {[%emt 0:00:10]} 7. c4 {[%emt 0:02:16]} Bg7 {[%emt 0:00:07]} 8. a3 {[%emt 0:02:58]} O-O {[%emt 0:00:15]} 9. Qc2 {[%emt 0:03:25]} Kh8 {[%emt 0:00:22]} 10. e3 {[%emt 0:01:38]} f5 {[%emt 0:03:05]} 11. Nc3 {[%emt 0:03:30]} f4 {[%emt 0:01:09]} 12. O-O {[%emt 0:09:11]} Nf5 {[%emt 0:01:02]} 13. Rae1 {[%emt 0:02:46]} Bd7 {[%emt 0:02:18]} 14. Nd5 {[%emt 0:01:43]} Be6 {[%emt 0:01:02]} 15. gxf4 {[%emt 0:02:56]} Qd7 {[%emt 0:06:00]} 16. Ng5 {[%emt 0:02:02]} Rad8 {[%emt 0:00:41]} 17. fxe5 {[%emt 0:08:08]} dxe5 {[%emt 0:00:43]} 18. Qc3 {[%emt 0:01:30]} Nh4 {[%emt 0:02:45]} 19. Nxe6 {[%emt 0:00:50]} Qxe6 {[%emt 0:00:57]} 20. f3 {[%emt 0:01:41]} Rf5 {[%emt 0:03:05]} 21. f4 {[%emt 0:01:29]} Nxg2 {[%emt 0:00:24]} 22. Kxg2 {[%emt 0:00:24]} Rh5 {[%emt 0:00:44]} 23. Rf3 {[%emt 0:00:26]} Rd7 {[%emt 0:01:19]} 24. Qc2 {[%emt 0:03:47]} Ne7 {[%emt 0:00:15]} 25. Nxe7 {[%emt 0:02:53]} Qxe7 {[%emt 0:00:07]} 26. h3 {[%emt 0:01:50]} exf4 {[%emt 0:01:03]} 27. Rxf4 {[%emt 0:03:34]} Kg8 {[%emt 0:01:44]} 28. Bxg7 {[%emt 0:03:39]} Qxg7 {[%emt 0:01:35]} 29. d4 {[%emt 0:01:55]} Rg5+ {[%emt 0:00:40]} 30. Kh2 {[%emt 0:02:01]} Qe7 {[%emt 0:03:21]} 31. Qf2 {[%emt 0:02:44]} cxd4 {[%emt 0:01:00]} 32. exd4 {[%emt 0:00:14]} Qd6 {[%emt 0:00:42]} 33. Kh1 {[%emt 0:02:40]} Qxa3 {[%emt 0:00:29]} 34. d5 {[%emt 0:01:27]} Qxb3 {[%emt 0:01:25]} 35. Re8+ {[%emt 0:00:09]} Kg7 {[%emt 0:00:15]} 36. Qd4+ {[%emt 0:00:02]} Kh6 {[%emt 0:00:38]} 37. Rh4+ {[%emt 0:00:04]} 1-0

[Event "CZE-ch U14 Open 2023"]
[Site "Teplice"]
[Date "2023.03.13"]
[Round "3.6"]
[White "Jasso, Matej"]
[Black "Vlcek, Vojtech"]
[Result "1/2-1/2"]
[ECO "B13"]
[WhiteElo "1934"]
[BlackElo "1671"]
[Annotator "TA"]
[PlyCount "108"]
[EventDate "2023.03.09"]
[EventType "swiss"]
[EventCountry "CZE"]
[SourceTitle "playchess.com"]
[Source "ChessBase"]
[SourceQuality "1"]
[TimeControl "40/5400+30:1800+30"]

{[%evp 9,108,8,20,13,16,9,1,-16,-3,-6,25,14,23,0,-9,9,100,109,101,67,162,41,42,8,17,10,10,0,24,0,0,0,9,17,179,163,245,216,245,154,238,187,245,226,225,74,382,370,511,493,493,490,921,522,528,513,519,512,485,485,474,0,0,0,0,0,0,-149,-154,-352,-339,-337,-305,-727,-709,-755,-775,-1195,-1163,-1182,-1156,-1137,-1100,-957,-807,-1204,-1187,-1085,-39,-39,-39,-44,-39,-41,-39,-39,-41,-92,-40,-64,-62]} 1. e4 {[%emt 0:00:42]} c6 {[%emt 0:00:49]} 2. d4 {[%emt 0:00:22]} d5 {[%emt 0:00:08]} 3. exd5 {[%emt 0:00:10]} cxd5 {[%emt 0:00:07]} 4. Bd3 {[%emt 0:00:05]} Nf6 {[%emt 0:00:29]} 5. h3 {[%emt 0:00:04]} g6 {[%emt 0:02:15]} 6. c3 {[%emt 0:01:18] B13: Caro-Kann: Exchange Variation and Panov-Botvinnik Attack.} Bf5 {[%emt 0:05:00]} 7. Bxf5 {[%emt 0:04:12]} gxf5 {[%emt 0:00:07]} 8. Nf3 {[%emt 0:02:24] The position is equal.} Qc7 {[%emt 0:02:27]} 9. Ne5 {[%emt 0:02:23]} e6 {[%emt 0:03:30] [#]} 10. Bf4 $146 {[%emt 0:01:56][%cal Oe5g6]} ({Predecessor:} 10. Nd2 Nc6 11. Ndf3 Bd6 12. Bf4 Rg8 13. Qe2 O-O-O 14. O-O-O Ne4 15. g3 f6 16. Nd3 Bxf4+ 17. Nxf4 {0-1 Bittorf,U (1771)-Kuehn,V (1653) GER Cup Net V1 U2000 blitz 2020 (4)}) 10... Bd6 {[%emt 0:01:43]} 11. Qa4+ {[%emt 0:04:40]} Nc6 {[%emt 0:06:34]} 12. Na3 {[%emt 0:00:55] Threatens to win with Nb5.} a6 {[%emt 0:08:49]} (12... Qa5 $11 13. Qb3 O-O-O) 13. Nb5 $16 {[%emt 0:02:03] White is more active.} axb5 {[%emt 0:01:05]} 14. Qxa8+ {[%emt 0:00:08]} Nb8 {[%emt 0:00:05]} (14... Nd8 $1 $14) 15. O-O {[%emt 0:31:20]} ({White should try} 15. a4 $18) 15... O-O $14 {[%emt 0:02:03]} 16. b4 {[%emt 0:00:54]} Ne4 $1 {[%emt 0:00:26]} 17. Bh6 {[%emt 0:00:52]} Rc8 {[%emt 0:01:58]} 18. Qa3 {[%emt 0:00:35]} f6 {[%emt 0:04:57]} 19. Nf3 {[%emt 0:01:27]} f4 {[%emt 0:00:38]} 20. Qc1 {[%emt 0:15:09]} Kf7 {[%emt 0:02:14]} 21. Nh4 {[%emt 0:01:52]} Rg8 $2 {[%emt 0:03:09]} (21... f5 $11) 22. Qd1 $1 $18 {[%emt 0:01:00]} Ke7 {[%emt 0:15:11]} (22... Ke8 $142 23. Qe2 Ke7) 23. Qh5 {[%emt 0:06:24]} Kd8 {[%emt 0:01:49]} 24. Rfc1 {[%emt 0:04:21] a4 would be deadly.} Nd7 {[%emt 0:01:23]} (24... Qd7 $16 25. Qf3 Na6) 25. a4 {[%emt 0:03:14][%cal Ba2a4,Ba4a5][%mdl 32]} Nb6 {[%emt 0:02:08]} (25... bxa4 $142 26. Rxa4 (26. Qf7 Re8 $16) 26... Nb6) 26. a5 {[%emt 0:02:40]} (26. axb5 Qe7 27. Ra2 Kd7) 26... Na4 {[%emt 0:02:27]} 27. Qf3 $2 {[%emt 0:06:00]} (27. c4 $1 $18 {[%cal Rc4d5] and White stays clearly on top.} dxc4 28. Qxb5) 27... Qc4 {[%emt 0:01:05][%mdl 8192]} (27... Naxc3 28. Rc2) (27... f5 $16) 28. Bxf4 {[%emt 0:01:14]} e5 {[%emt 0:04:47]} 29. dxe5 {[%emt 0:01:06]} fxe5 {[%emt 0:00:03]} 30. Be3 {[%emt 0:00:13]} Naxc3 {[%emt 0:02:01]} (30... Kc8 $142 31. a6 bxa6 32. Qf5+ Kb8 33. Qxh7 Rd8 34. Qa7+ Kc8) 31. Bb6+ {[%emt 0:00:26]} Kc8 {[%emt 0:03:45]} 32. a6 {[%emt 0:01:00]} bxa6 {[%emt 0:02:11]} 33. Nf5 {[%emt 0:04:59]} (33. Qf5+ Kb7 34. Ba5 (34. Qxh7+ Kxb6 35. Qxg8 Ne2+ 36. Kh2 Nxc1 $11) 34... Rg7 $15) 33... Bxb4 {[%emt 0:01:32]} 34. Ne3 {[%emt 0:00:11]} (34. Rxa6 Ne2+ 35. Qxe2 Qxc1+ 36. Kh2 Nd2 $11) 34... Qc6 {[%emt 0:02:24]} 35. Qf7 {[%emt 0:01:06]} (35. Qf5+ Qd7 36. Rxa6 (36. Qxe5 Kb7 $17) 36... Qxf5 37. Nxf5 Kb7 $15) ({Only move:} 35. Rxa6 $18 {White wants to mate with Qf7.} Qf6 36. Rxc3+ Bxc3 37. Ra8+ Kb7 38. Rxg8 Qxf3 39. gxf3) 35... Rf8 $11 {[%emt 0:01:17]} (35... Nf6 $2 36. Rxa6 (36. Qa7 $2 Ne2+ {[%mdl 64] Discovered Attack, Double Attack} 37. Kh2 Nxc1 $19) 36... Ne8 37. Rca1 $18) 36. Qa7 {[%emt 0:00:32][%cal Oe3d5] Strongly threatening Nxd5! Dancing on a razor blade.} ({But not} 36. Qxd5 Nxd5 37. Rxc6+ Kb7 38. Nxd5 Kxc6 39. Nxb4+ Kxb6 40. Rxa6+ Kc5 41. Nd3+ Kd4 $17) 36... Ne2+ {[%emt 0:02:09][%cal Bc3e2,Be2c1,Bc1b3,Bb3d4][%mdl 96] Discovered Attack, Double Attack. A dynamic duo of knights.} (36... Rxf2 $2 37. Nxd5 (37. Rxa6 Ne2+ 38. Kh2 Nxc1 $11) 37... Rd2 38. Nxb4 $18) 37. Kh2 {[%emt 0:00:01][%cal Rc1c6]} Nxc1 {[%emt 0:00:34]} 38. Nxd5 {[%emt 0:00:47] [#]} Bd6 $1 $17 {[%emt 0:02:56] Hoping for ...Nb3.} 39. Be3 $2 {[%emt 0:00:42]} (39. Qxa6+ $17 {was the only chance.} Kd7 40. Qa7+ Ke6 41. Nc7+ Kf7 42. Ra6) 39... Nb3 {[%emt 0:03:17]} 40. Nb6+ {[%emt 0:00:25]} Kd8 {[%emt 0:00:07]} 41. Rd1 {[%emt 0:05:22]} (41. Rxa6 Nbc5 42. Ra2) 41... Nd4 $19 {[%emt 0:03:57]} (41... Nxf2 42. Bxf2 Ke8 43. Bg3 $15) 42. Rc1 {[%emt 0:01:41]} Nc5 {[%emt 0:06:19]} 43. Rxc5 {[%emt 0:14:30]} Bxc5 {[%emt 0:00:24]} 44. Qb8+ {[%emt 0:00:54]} Ke7 {[%emt 0:00:14]} 45. Qxe5+ {[%emt 0:00:39]} Kf7 {[%emt 0:00:25]} 46. Qh5+ {[%emt 0:00:55]} Kg8 {[%emt 0:08:36]} 47. Nd5 {[%emt 0:05:01]} Nf5 {[%emt 0:04:14]} 48. Qf3 {[%emt 0:02:03]} Nxe3 $2 {[%emt 0:02:00]} (48... Bxe3 $19 49. Qg4+ Kh8 50. Nxe3 Qd6+ 51. Kg1 Nxe3 52. fxe3 b4) 49. Ne7+ $1 $15 {[%emt 0:00:20][%mdl 64] Discovered Attack} Bxe7 {[%emt 0:01:23]} 50. Qxc6 {[%emt 0:00:07]} Nc4 {[%emt 0:00:31] And now ...Rf6 would win.} ({Don't do} 50... Rxf2 51. Qe8+ Bf8 52. Qxe3 Bd6+ 53. Kg1 $14) 51. Qxa6 {[%emt 0:00:52]} Rxf2 {[%emt 0:05:32] ...Nd6 is the strong threat.} 52. Qxb5 {[%emt 0:00:16]} Nd6 {[%emt 0:00:37]} 53. Qd5+ {[%emt 0:00:25] [#]} ({White should play} 53. Qe5 $15 Rf7 54. g4) 53... Rf7 {[%emt 0:00:52]} ({Better is} 53... Nf7 $1 $17 54. Qc6 Bd6+ 55. Kg1 Rf4) 54. Qe6 {[%emt 0:00:27]} Kf8 {[%emt 0:01:38] Black had all chances to win. An exciting game.   Weighted Error Value: White=0.86/Black=0.39} 1/2-1/2

[Event "CZE-ch U14 Open 2023"]
[Site "Teplice"]
[Date "2023.03.13"]
[Round "3.7"]
[White "Soucek, Andrej"]
[Black "Popov, Roman"]
[Result "1/2-1/2"]
[ECO "B12"]
[WhiteElo "1679"]
[BlackElo "2353"]
[Annotator "TA"]
[PlyCount "96"]
[EventDate "2023.03.09"]
[EventType "swiss"]
[EventCountry "CZE"]
[SourceTitle "playchess.com"]
[Source "ChessBase"]
[SourceQuality "1"]
[TimeControl "40/5400+30:1800+30"]

{[%evp 11,96,0,0,0,0,-33,-32,-43,-37,-33,-31,-31,-48,-67,-22,-31,-23,-39,4,-38,-21,-59,-36,-34,-18,-29,0,0,0,0,0,0,35,27,83,84,85,85,97,110,262,144,469,77,80,86,70,79,70,0,0,-133,-140,-135,-110,-105,-87,-101,0,0,33,29,401,404,408,-22,-19,-19,-19,-19,-24,-22,-23,-24,-19,-39,-35,-39,-29,-35,-31,-36,0,-19,0,0,0]} 1. e4 {[%emt 0:00:03]} c6 {[%emt 0:00:36]} 2. d4 {[%emt 0:00:12]} d5 {[%emt 0:00:08]} 3. e5 {[%emt 0:00:20]} Bf5 {[%emt 0:00:41]} 4. h4 {[%emt 0:00:19]} h5 {[%emt 0:00:21]} 5. c4 {[%emt 0:00:34]} e6 {[%emt 0:04:40]} 6. Nc3 {[%emt 0:01:44]} Ne7 {[%emt 0:06:53]} 7. Nf3 {[%emt 0:03:36] B12: Caro-Kann: Advance Variation.} Bg4 {[%emt 0:07:24]} 8. cxd5 {[%emt 0:14:04]} cxd5 {[%emt 0:01:55] [#]} 9. Qb3 $146 {[%emt 0:15:05] Black is slightly better.} ({Predecessor:} 9. Qa4+ Nbc6 10. Bg5 a6 11. Be2 b5 12. Qd1 Qb6 13. O-O Bxf3 14. Bxf3 Qxd4 15. Re1 Qxd1 16. Raxd1 {0-1 Thielen,D (2120)-Heinig,W (2289) Seefeld op 12th 2001 (3)}) 9... Qd7 {[%emt 0:19:17]} 10. Nh2 {[%emt 0:19:06]} Nbc6 {[%emt 0:10:02]} 11. Nxg4 {[%emt 0:11:29]} hxg4 {[%emt 0:00:42][%cal Bh5g4,Bg4g3][%mdl 32]} 12. Qd1 {[%emt 0:00:52] [#]} g3 $1 {[%emt 0:08:32] White should prevent ...gxf2+.} 13. Be3 {[%emt 0:05:54]} Nf5 {[%emt 0:03:59]} 14. Qg4 {[%emt 0:04:39]} Be7 {[%emt 0:05:32]} 15. h5 {[%emt 0:00:24]} (15. Bd3 $5 {[%cal Rd3f5]}) 15... O-O-O {[%emt 0:03:26][%cal Og7g6]} 16. Bd3 {[%emt 0:02:59] Dodges g6} gxf2+ {[%emt 0:06:17]} (16... Nxe5 {looks sharper.} 17. dxe5 d4 18. Bxf5 gxf2+ 19. Bxf2 exf5 20. Qf3 dxc3 21. bxc3 Kb8) 17. Bxf2 {[%emt 0:02:03]} Nh6 {[%emt 0:03:18] Excellent horsemanship.} 18. Qf3 {[%emt 0:00:50]} (18. Qxg7 $2 Rdg8 $19) 18... f6 {[%emt 0:02:06]} 19. exf6 {[%emt 0:02:13]} Bxf6 {[%emt 0:01:23]} 20. Bb5 {[%emt 0:00:22]} Rhf8 {[%emt 0:01:19]} 21. Qe2 {[%emt 0:00:53]} Nf5 {[%emt 0:07:32]} (21... Rde8 $5 {[%cal Re6e5]}) 22. O-O-O {[%emt 0:02:58]} Qd6 {[%emt 0:01:26] [#]} (22... Bxd4 $2 23. Bxc6 Qxc6 24. Bxd4 $18) (22... Nd6 $11) 23. Bxc6 $1 $16 {[%emt 0:01:18]} (23. Qg4 $6 Kb8 $11) 23... Qxc6 {[%emt 0:00:55]} 24. g4 {[%emt 0:01:58]} Bg5+ {[%emt 0:02:13]} 25. Kb1 {[%emt 0:00:24]} Nh6 $2 {[%emt 0:01:03]} (25... Nd6 $16) 26. Nb5 {[%emt 0:02:54]} (26. Rc1 $18 Bxc1 27. Rxc1 Rxf2 28. Qxf2) 26... Qb6 {[%emt 0:00:16][%mdl 8192]} (26... Kd7 $16) 27. Bh4 $2 {[%emt 0:05:25]} (27. Bg3 $18 {[%cal Od1c1] and the rest is easy. And now Rc1+! would win.} a6 28. Nc7 (28. Qe5 Bf6 $18)) 27... Bxh4 {[%emt 0:00:48]} 28. Rc1+ {[%emt 0:00:05]} Kd7 {[%emt 0:00:49] aiming for ...Bg3.} 29. Rxh4 {[%emt 0:01:07] Rc7+ is the strong threat.} Rc8 {[%emt 0:00:24] Repels Rc7+. Strongly threatening ...Rxc1+.} 30. Rxc8 (30. Rhh1 $1 $14) 30... Rxc8 $11 {[%emt 0:00:18]} 31. g5 {[%emt 0:00:55]} (31. Rh1 $11 {remains equal.}) 31... Nf5 $17 {[%emt 0:00:37]} 32. Rg4 {[%emt 0:00:40]} a6 {[%emt 0:00:20]} ({Stronger than} 32... Qc6 33. Nc3 $15) 33. Na3 {[%emt 0:00:12][%cal Bb5a3,Ba3c2,Bc2b4][%mdl 32]} Qc6 {[%emt 0:00:32][%csl Gc8][%cal Rc6c1]} ({Don't do} 33... Nxd4 34. Qe3 e5 35. Qxe5 $16) 34. Qd2 {[%emt 0:00:42] Prevents Qc1+} b5 {[%emt 0:00:59]} (34... Rh8 $17 35. h6 gxh6) 35. h6 $11 {[%emt 0:00:28]} b4 {[%emt 0:00:30]} 36. Nc2 {[%emt 0:00:07]} Rh8 $2 {[%emt 0:00:40][%mdl 8192]} (36... Qc4 $11 {and Black stays safe.}) 37. Nxb4 $18 {[%emt 0:00:34]} Qc4 {[%emt 0:00:25]} 38. Qc3 $2 {[%emt 0:00:49]} (38. Nd3 $18 {Threatens to win with Ne5+.} Kc8 39. b3) 38... Qf1+ $11 {[%emt 0:00:25]} 39. Qc1 {[%emt 0:00:11]} Qxc1+ {[%emt 0:00:39]} 40. Kxc1 {[%emt 0:00:03]} gxh6 {[%emt 0:00:31]} 41. gxh6 {[%emt 0:31:55][%mdl 4096] Endgame KRN-KRN} a5 {[%emt 0:04:36]} 42. Nd3 {[%emt 0:00:00]} Rxh6 {[%emt 0:03:17]} 43. Ne5+ {[%emt 0:00:00]} Kc7 {[%emt 0:02:01]} 44. Kd2 {[%emt 0:00:00]} Rh2+ {[%emt 0:01:56]} 45. Kc3 {[%emt 0:00:00]} Rh3+ {[%emt 0:00:54]} 46. Kd2 {[%emt 0:00:00]} Rh2+ {[%emt 0:07:38]} 47. Kc3 {[%emt 0:00:00]} Nd6 {[%emt 0:02:19]} 48. Kb3 {[%emt 0:00:00]} Nf5 {[%emt 0:05:42] Weighted Error Value: White=0.45/Black=0.41} 1/2-1/2

[Event "CZE-ch U14 Open 2023"]
[Site "Teplice"]
[Date "2023.03.13"]
[Round "3.8"]
[White "Ocelak, David"]
[Black "Andrle, Filip"]
[Result "1/2-1/2"]
[ECO "B30"]
[WhiteElo "1608"]
[BlackElo "1721"]
[Annotator "NA RC COMBH"]
[PlyCount "117"]
[EventDate "2023.03.09"]
[EventType "swiss"]
[EventCountry "CZE"]
[SourceTitle "playchess.com"]
[Source "ChessBase"]
[SourceQuality "1"]
[TimeControl "40/5400+30:1800+30"]

1. e4 {[%emt 0:00:06]} c5 {[%emt 0:00:08]} 2. Nf3 {[%emt 0:00:18]} Nc6 {[%emt 0:00:29]} 3. Bb5 {[%emt 0:01:12]} d6 {[%emt 0:00:35]} 4. O-O {[%emt 0:00:43]} Bd7 {[%emt 0:00:33]} 5. Re1 {[%emt 0:01:17]} g6 {[%emt 0:01:10]} 6. c3 {[%emt 0:00:36]} Bg7 {[%emt 0:02:41]} 7. d4 {[%emt 0:08:38]} cxd4 {[%emt 0:01:02]} 8. Nxd4 {[%emt 0:01:13]} a6 {[%emt 0:14:50]} 9. Bf1 {[%emt 0:02:59]} Nf6 {[%emt 0:02:46]} 10. Nxc6 {[%emt 0:09:22]} Bxc6 {[%emt 0:00:50]} 11. f3 {[%emt 0:01:23]} O-O {[%emt 0:00:38]} 12. Be3 {[%emt 0:00:48]} Nd7 {[%emt 0:01:13]} 13. Nd2 {[%emt 0:03:31]} Nc5 {[%emt 0:02:29]} 14. Nb3 {[%emt 0:05:50]} b6 {[%emt 0:02:13]} 15. Bc4 {[%emt 0:11:18]} Qc7 {[%emt 0:03:43]} 16. Bd5 {[%emt 0:08:40]} Rac8 {[%emt 0:07:33]} 17. Bxc6 {[%emt 0:04:27]} Qxc6 {[%emt 0:00:15]} 18. Nd4 {[%emt 0:00:42]} Qb7 {[%emt 0:00:36]} 19. Qd2 {[%emt 0:02:23]} Rfd8 {[%emt 0:01:25]} 20. Red1 {[%emt 0:03:53]} b5 {[%emt 0:02:48]} 21. Rac1 {[%emt 0:02:23]} Rd7 {[%emt 0:03:29]} 22. Nb3 {[%emt 0:02:52]} Nxb3 {[%emt 0:05:40]} 23. axb3 {[%emt 0:00:06]} Rcd8 {[%emt 0:03:07]} 24. Qd5 {[%emt 0:03:54]} Qxd5 {[%emt 0:01:55]} 25. exd5 {[%emt 0:00:45]} a5 {[%emt 0:02:30]} 26. Ra1 {[%emt 0:02:00]} Ra8 {[%emt 0:00:33]} 27. Ra2 {[%emt 0:00:55]} Rb7 {[%emt 0:07:24]} 28. Rda1 {[%emt 0:01:08]} f5 {[%emt 0:01:25]} 29. Rxa5 {[%emt 0:00:58]} Rxa5 {[%emt 0:00:10]} 30. Rxa5 {[%emt 0:00:03]} b4 {[%emt 0:00:24]} 31. c4 {[%emt 0:03:26]} Kf7 {[%emt 0:03:37]} 32. Kf2 {[%emt 0:02:05]} Bxb2 {[%emt 0:01:16]} 33. Ke2 {[%emt 0:00:38]} Ke8 {[%emt 0:02:00]} 34. Kd3 {[%emt 0:01:23]} Kd7 {[%emt 0:04:13]} 35. Ra7 {[%emt 0:02:58]} Rxa7 {[%emt 0:02:35]} 36. Bxa7 {[%emt 0:00:02]} e6 {[%emt 0:01:17]} 37. Bb6 {[%emt 0:01:29]} Bc3 {[%emt 0:03:32]} 38. dxe6+ {[%emt 0:07:06]} Kxe6 {[%emt 0:00:32]} 39. g3 {[%emt 0:01:53]} Bf6 {[%emt 0:04:38]} 40. f4 {[%emt 0:00:54]} h5 {[%emt 0:02:46]} 41. Bd4 {[%emt 0:33:05]} Bd8 {[%emt 0:31:52]} 42. c5 {[%emt 0:00:00]} d5 {[%emt 0:00:00]} 43. Be5 {[%emt 0:00:00]} Kd7 {[%emt 0:00:00]} 44. Kd4 {[%emt 0:00:00]} Kc6 {[%emt 0:00:00]} 45. Bd6 {[%emt 0:00:00]} Bf6+ {[%emt 0:00:00]} 46. Kd3 {[%emt 0:00:00]} h4 {[%emt 0:00:00]} 47. Bf8 {[%emt 0:00:00]} hxg3 {[%emt 0:00:00]} 48. hxg3 {[%emt 0:00:00]} Bc3 {[%emt 0:00:00]} 49. Ke2 {[%emt 0:00:00]} Bd4 {[%emt 0:00:00]} 50. Bd6 {[%emt 0:00:00]} Bxc5 {[%emt 0:00:00]} 51. Be5 {[%emt 0:00:25]} Bg1 {[%emt 0:00:00]} 52. Bf6 {[%emt 0:00:53]} Kc5 {[%emt 0:00:00]} 53. Be7+ {[%emt 0:00:20]} Kb5 {[%emt 0:00:00]} 54. Bf6 {[%emt 0:00:12]} d4 {[%emt 0:00:00]} 55. Kd3 {[%emt 0:03:25]} Kc5 {[%emt 0:00:00]} 56. Be7+ {[%emt 0:00:12]} Kd5 {[%emt 0:00:00]} 57. Bxb4 {[%emt 0:00:59]} Bf2 {[%emt 0:00:00]} 58. Be7 {[%emt 0:01:26]} Bxg3 {[%emt 0:00:00]} 59. Bg5 1/2-1/2